Cogmind - Beta 14 @@@ ROGUE MODE // 2024.08.12 @ 18:54:45 Player: Zeia Result: Destroyed by C0-I33(R) with Subdweller Shrapnel Launcher Performance ------------- Evolutions (0) 0 Regions Visited (2) 400 Robots Destroyed (16) 80 Value Destroyed (474) 474 Prototype IDs (0) 0 Alien Tech Used (0) 0 Bonus (-9) -9 TOTAL SCORE: 945 Bonus ------- Friendly Fire -9 Cogmind --------- Core Integrity 0/250 Matter 285/300 Energy 100/100 System Corruption 0% Temperature Cool (0) Movement Treading (160) Location -10/Subcaves Parts ------- > --- POWER (1) -------- (None) > --- PROPULSION (2) --- Light Treads Light Treads > --- UTILITY (2) ------ Disposable Heat Sink Makeshift Light Armor Plating > --- WEAPON (2) ------- Subdweller Laser Assault Rifle > --- INVENTORY (5) ---- Wheel Subdweller Monowheel Subdweller Laser Battle Cannon Scrap Shield Fragment (48) Peak State ------------ > --- POWER ------------ (None) > --- PROPULSION ------- Light Treads Light Treads > --- UTILITY ---------- Disposable Heat Sink Makeshift Light Armor Plating > --- WEAPON ----------- Subdweller Laser Assault Rifle > --- INVENTORY -------- Wheel Barrage Gun Battle Cannon Makeshift Sword Scrap Shield Fragment [Rating: 12] Favorites ----------- Power Ion Engine Engine Ion Engine Propulsion Light Treads Treads Light Treads Utility Improved Terrain Scanner Device Improved Terrain Scanner Storage Large Storage Unit Protection Scrap Shield Weapon Assault Rifle Energy Gun Subdweller Laser Ballistic Gun Assault Rifle Build | -11 -10 -10 ------- Run | Yrd Mat Sub Slots Evolved . | . . . Power . | . . . Propulsion . | . . . Utility . | . . . Weapon . | . . . Parts Attached 21 | 7 3 11 Power 3 | 1 1 1 Engine 3 | 1 1 1 Core . | . . . Reactor . | . . . Propulsion 5 | 2 . 3 Treads 5 | 2 . 3 Leg . | . . . Wheel . | . . . Hover . | . . . Flight . | . . . Utility 8 | 2 1 5 Device 2 | 1 . 1 Storage 3 | 1 1 1 Processor . | . . . Hackware . | . . . Protection 3 | . . 3 Artifact . | . . . Weapon 5 | 2 1 2 Energy Gun 1 | . . 1 Energy Cannon . | . . . Ballistic Gun 4 | 2 1 1 Ballistic Cannon . | . . . Launcher . | . . . Special Weapon . | . . . Impact Weapon . | . . . Slashing Weapon . | . . . Piercing Weapon . | . . . Special Melee Weapon . | . . . Unidentified Prototypes . | . . . Parts Lost 9 | . 2 7 Power 3 | . 1 2 Propulsion 1 | . . 1 Utility 2 | . . 2 Weapon 3 | . 1 2 Highest Loss Streak 7 | . 2 7 To Critical Strikes . | . . . Average Slot Usage (%) 85 | . 99 74 Engine 8 | . 13 3 Treads 27 | . 28 27 Device 11 | . 14 9 Storage 6 | . 14 . Protection 2 | . . 4 Energy Gun 5 | . . 9 Ballistic Gun 22 | . 28 17 Peak Build Rating 12 | 9 10 12 Average Rating 8 | 5 9 7 On Entrance 6 | . 9 10 Naked Turns . | . . . Heaviest Build 30 | 15 30 30 Greatest Support 40 | 40 40 40 Greatest Overweight (x) . | . . . Average Overweight (x) . | . . . Largest Inventory Capacity 15 | 8 15 15 Average Capacity 9 | 7 14 5 Most Carried 15 | 6 14 15 Average Carried 7 | 4 11 4 Final Capacity 15 | 8 15 5 Final Carried 14 | 6 14 5 Class Distribution -------------------- 100% | Mutant Dominant Class ---------------- Mutant | -10/Materials Mutant | -10/Subcaves Resources | -11 -10 -10 ----------- Run | Yrd Mat Sub Matter Collected 666 | 185 297 184 Remotely . | . . . Salvage Created 509 | 12 288 209 Parts 25 | 3 17 5 Haulers Intercepted . | . . . Recyclers Shooed . | . . . Parts Field Recycled . | . . . Retrieved Matter . | . . . Parts Self-Destructed 15 | . . 15 Prevented . | . . . Kills | -11 -10 -10 ------- Run | Yrd Mat Sub Combat Hostiles Destroyed 14 | . 8 6 Guns 14 | . 8 6 Classes Destroyed 5 | 1 3 1 Worker 1 | . 1 . Tunneler 1 | 1 . . Swarmer 3 | . 3 . Grunt 5 | . 5 . Subdweller 6 | . . 6 Best Kill Streak 4 | 1 4 4 Combat Bots Only 4 | . 3 4 Max Kills in Single Turn 1 | 1 1 1 Gunslinging . | . . . Exploded . | . . . Melee . | . . . Uniques/NPCs Destroyed . | . . . Combat | -11 -10 -10 -------- Run | Yrd Mat Sub Hostile Shots Fired 149 | . 67 82 Missed 33 | . 10 23 Damage Taken 1913 | . 597 1316 Core 258 | . 85 173 Absorbed by Shields . | . . . Core Remaining (%) 100 | 100 . . Volleys Fired 59 | 5 27 27 Largest 2 | 2 2 2 Hottest 80 | 40 40 80 Shots Fired 106 | 10 54 42 Gun 106 | 10 54 42 Cannon . | . . . Launcher . | . . . Special . | . . . Kinetic 105 | 10 54 41 Thermal 1 | . . 1 Explosive . | . . . Electromagnetic . | . . . Robot Hit Streak 17 | 3 16 17 Robot Miss Streak 3 | 1 3 3 Penetration Max . | . . . Secondary Targets 3 | . 2 1 Max Gunslinging Chain 1 | . 1 1 Shots Hit Robots 77 | 7 39 31 Core Hits 32 | 2 16 14 Critical Kills . | . . . Critical Parts Destroyed 1 | . 1 . Critical Strikes 1 | . 1 . Destroy 1 | . 1 . Melee Attacks . | . . . Impact . | . . . Slashing . | . . . Piercing . | . . . Sneak Attacks . | . . . Combat Hostiles . | . . . Follow-up Attacks . | . . . Damage Inflicted 1007 | 103 499 405 Guns 1007 | 103 499 405 Cannons . | . . . Explosions . | . . . Melee . | . . . Ramming . | . . . Kinetic 1007 | 103 499 405 Thermal . | . . . Explosive . | . . . Electromagnetic . | . . . Impact . | . . . Slashing . | . . . Piercing . | . . . Highest Corruption . | . . . Average Corruption . | . . . Corruption Purged . | . . . Corruption Blocked . | . . . Overload Shots . | . . . Overflow Damage . | . . . Projectiles . | . . . Explosions . | . . . Melee . | . . . Knockbacks . | . . . Impact . | . . . Kinetic . | . . . Secondary . | . . . Self-Inflicted Damage . | . . . Shots . | . . . Rammed . | . . . Targets Rammed . | . . . Kicked . | . . . Crushed . | . . . Highest Temperature 28 | . 28 . Average Temperature 8 | . 8 . Received Heat Transfer 420 | . 228 192 Siege Activations . | . . . Robots Corrupted . | . . . Combat Hostiles . | . . . Parts Fried . | . . . Impact Corruptions . | . . . Robots Melted . | . . . Combat Hostiles . | . . . Parts Melted 1 | . . 1 Heat Transferred . | . . . Parts Sabotaged . | . . . Parts Stolen . | . . . Parts Stripped . | . . . Power Chain Reactions . | . . . Alert | -11 -10 -10 ------- Run | Yrd Mat Sub Peak Influence 181 | 5 181 . Initial 3 | . 3 . Average 53 | 2 58 . Maximum Alert Level . | . . . Low Security (%) 100 | 100 100 . Level 1 . | . . . Level 2 . | . . . Level 3 . | . . . Level 4 . | . . . Level 5 . | . . . High Security . | . . . Max Security . | . . . Squads Dispatched 2 | . 2 . Investigation 2 | . 2 . Extermination . | . . . Reinforcement . | . . . Assault . | . . . Garrison . | . . . Intercept . | . . . Searches Triggered . | . . . Construction Impeded . | . . . Haulers Reinforced . | . . . Active Scanning Responses . | . . . Cargo Convoy Interrupts . | . . . Stealth | -11 -10 -10 --------- Run | Yrd Mat Sub Distress Signals 2 | . 2 . Communications Jammed . | . . . Distress Signals . | . . . Times Spotted 31 | . 18 13 Peak Tracking Total 8 | . 6 8 Tactical Retreats 1 | . . 1 Traps | -11 -10 -10 ------- Run | Yrd Mat Sub Traps Triggered 2 | . 2 . Indirectly . | . . . Trap Hack Attempts . | . . . Triggered . | . . . Disarmed . | . . . Reprogrammed . | . . . Reused . | . . . Traps Extracted . | . . . Installed . | . . . Triggered . | . . . Machines | -11 -10 -10 ---------- Run | Yrd Mat Sub Machines Disabled . | . . . Max in Single Turn . | . . . Machines Repaired . | . . . Machines Dismantled . | . . . Machines Sabotaged . | . . . Overloaded Fab Kills . | . . . Hacking | -11 -10 -10 --------- Run | Yrd Mat Sub Machines Accessed 6 | . 6 . Terminals 6 | . 6 . Fabricators . | . . . Repair Stations . | . . . Recycling Units . | . . . Scanalyzers . | . . . Garrison Access . | . . . Total Hacks 14 | . 14 . Successful 8 | . 8 . Failed 6 | . 6 . Catastrophic . | . . . Database Lockouts . | . . . Manual 12 | . 12 . Terminals 14 | . 14 . Fabricators . | . . . Repair Stations . | . . . Recycling Units . | . . . Scanalyzers . | . . . Garrison Access . | . . . Terminal Hacks 3 | . 3 . Level Access Points 1 | . 1 . Zone Layout 2 | . 2 . Fabricator Hacks . | . . . Repair Station Hacks . | . . . Recycling Unit Hacks . | . . . Scanalyzer . | . . . Garrison Access Hacks . | . . . Unauthorized Hacks 5 | . 5 . Terminals 5 | . 5 . Botnet 5 | . 5 . Fabricators . | . . . Repair Stations . | . . . Recycling Units . | . . . Scanalyzers . | . . . Garrison Access . | . . . Data Cores Recovered . | . . . Used . | . . . Hacking Detections 4 | . 4 . Full Trace Events 1 | . 1 . Feedback Events . | . . . Feedback Blocked . | . . . Robot Schematics Acquired . | . . . Robots Built . | . . . Authchips . | . . . Time . | . . . Total Robot Build Rating . | . . . Part Schematics Acquired . | . . . Parts Built . | . . . Authchips . | . . . Time . | . . . Total Part Build Rating . | . . . Parts Repaired . | . . . Time . | . . . Parts Recycled . | . . . Recycled Matter . | . . . Retrieved Matter . | . . . Retrieved Components . | . . . Parts Scanalyzed . | . . . Part Schematics Acquired . | . . . Parts Damaged . | . . . Bothacking | -11 -10 -10 ------------ Run | Yrd Mat Sub Used RIF Installer . | . . . Robots Hacked . | . . . Non-combat . | . . . Combat . | . . . Robot Hacks Applied . | . . . Relay Couplers Released . | . . . Fabnet Peak Effective % . | . . . Robots Rewired . | . . . Allies Hacked . | . . . Hacks Repelled . | . . . Allies | -11 -10 -10 -------- Run | Yrd Mat Sub Total Allies . | . . . Largest Group . | . . . Highest-Rated Group . | . . . Highest-Rated Ally . | . . . Total Orders . | . . . Ally Attacks . | . . . Total Damage . | . . . Kills . | . . . Allies Corrupted . | . . . Allies Melted . | . . . Intel | -11 -10 -10 ------- Run | Yrd Mat Sub Robot Analysis Total . | . . . Derelict Logs Recovered 1 | . . 1 Drone Launches . | . . . Drone Recoveries . | . . . Exploration | -11 -10 -10 ------------- Run | Yrd Mat Sub Turns Passed 2910 | 118 1259 1533 Spaces Moved 1662 | 58 721 883 Core 5 | 5 . . Treads 1657 | 53 721 883 Legs . | . . . Wheels . | . . . Hover . | . . . Flight . | . . . Fastest Speed 50 | 50 160 160 Average Speed 159 | 150 160 160 Slowest Speed 160 | 160 160 160 Overloaded Moves . | . . . Propulsion Burnouts . | . . . Robots Hopped . | . . . Cave-ins Triggered . | . . . Exploration Rate (%) 52 | 4 96 56 Regions Visited 2 Branch Regions 1 Pre-discovered Areas 2 | . . 2 Known Exits Taken . | . . . Unknown Exits Taken 2 | 1 1 . Scrap Searched 1 | . . 1 Spaces Dug . | . . . Terrain Destroyed . | . . . Melee . | . . . Projectile . | . . . AOE . | . . . Terrain Rammed . | . . . Walls Destroyed . | . . . Machines Disabled . | . . . Actions | -11 -10 -10 --------- Run | Yrd Mat Sub Total 1816 | 75 773 968 Wait 28 | . 12 16 Move 1659 | 57 719 883 Hop . | . . . Pick Up 28 | 6 10 12 Fast Attach 9 | 7 1 1 Attach 9 | . 1 8 Detach 2 | . . 2 Swap 3 | . 1 2 Drop 16 | . 2 14 Fire 59 | 5 27 27 Melee . | . . . Ram . | . . . Kick . | . . . Crush . | . . . Escape Stasis . | . . . Rewire . | . . . Trap . | . . . Miscellaneous 3 | . . 3 Route ------- -11/Scrapyard -10/Materials (discovered 6 exits: *Mat x3 / [*Min x2] / [*Sub]) -10/Subcaves (discovered 1 exit: [*Mat]) History --------- Turn | Location | Event 2 | -11/Scrapyard | Met Revision 17 14 | -11/Scrapyard | Discovered new exit (range 16) 119 | -11/Scrapyard | Entered Materials 197 | -10/Materials | Discovered new exit (range 8) 316 | -10/Materials | Build established: Mutant 350 | -10/Materials | Discovered new exit (range 12) 685 | -10/Materials | Discovered new exit (range 9) 800 | -10/Materials | Discovered new exit (range 7) 882 | -10/Materials | Discovered new exit (range 14) 1149 | -10/Materials | Discovered new exit (range 16) 1288 | -10/Materials | Identified exit to Materials 1378 | -10/Materials | Entered Subcaves 1380 | -10/Subcaves | Shifting Twisted Machinery released Mak. Thermal Plating 1741 | -10/Subcaves | Ambushed by swarm of Subdwellers 1741 | -10/Subcaves | Ambushed by Subdwellers from Twisted Machinery 1741 | -10/Subcaves | Ambushed by Subdwellers from Twisted Machinery 1759 | -10/Subcaves | Core integrity fell below 50% 1820 | -10/Subcaves | Lost 7 parts (2p1n2u2w) 1850 | -10/Subcaves | A swath of the cavern ceiling suddenly collapsed 2310 | -10/Subcaves | Shifting Twisted Machinery released Battle Cannon 2323 | -10/Subcaves | Shifting Twisted Machinery released Sub. Beam Cannon 2622 | -10/Subcaves | Discovered new exit (range 11) 2776 | -10/Subcaves | Learned location of Zion (-7) 2776 | -10/Subcaves | Met a Zionite searching for "candidates" 2902 | -10/Subcaves | Ambushed by Subdwellers from Twisted Machinery 2907 | -10/Subcaves | Core integrity fell below 20% 2911 | -10/Subcaves | Destroyed by C0-I33(R) with Subdweller Shrapnel Launcher Last Messages --------------- 02350_ Acquired Sub. Beam Cannon. 02527_ Dropped Sub. Beam Cannon. 02529_ Acquired Barrage Gun. 02552_ Acquired 5 matter. 02554_ Acquired 8 matter. 02622_ EXIT=FOUND 02674_ Acquired 5 matter. 02775_ KE-IG4(z): "She is not going to be happy we haven't found any suitable candidates yet." 02776_ KE-IG4(z): "Hey you! It's really dangerous down here, I feel that you could die at any moment. For your health and safety might I suggest a trip to Zion?" World map updated: -7/Zion. 02806_ Acquired Mak. Light Armor Plating. 02838_ Dropped Mak. Sword. 02839_ Dropped Barrage Gun. 02840_ Subatomizers dissect the Wheel. 02841_ Acquired Sub. Laser. 02845_ Acquired Sub. Monowheel. 02852_ Subatomizers dissect the Wheel. Map ----- +----------------------------------------------------+ | | | | | | | | | | | | | | | | | ?????????????????????????????????????????????????? | | ?????????????????????????????????????????????????? | | ?????????????????????????????????????????????????? | | ?????????????????????????????????????????????????? | | ?????????????????????????????????????????????????? | | ?????????????????????????????????????????????????? | | ?????????????????????????????????????????????????? | | ?????????????????????????????????????????????????? | | ?????????????????????????????????????????????????? | | ?????????????????????????????????????????????????? | | ?????????????????????????????????????????????????? | | ?????????????????????????????????????????????????? | | ?????????????????????????????????????????????????? | | ?????????????????????????????????????????????????? | | ??????????#""##?????#########????????????????????? | | ?????????##; ;;;;####;;##;;;#######??????????????? | | ?????" ;; ; ;; ;# ##?????????????? | | ??????"" @ ##????????????? | | ???????"" R ##### ##???????????? | | ?????? "##;;;; ;; ; ;###???# #?????????### | | ??????????## #;;;;###;;;;##?????## ########### | | ??????????????#####??# # ##???????# ## | | ?????????????????????#####????????# | | ??????????????????????????????????## ### | | ??????????????????????????????????## ##?# | | ??????????????????????????????????# #?????# | | ??????????????????????????????????# ##????# | | ??????????????????????????????????## ##??## | | ???????????????????????????????????# #### | | ???????????????????????????????????# ## | | ???????????????????????????????????# # | | ???????????????????????????????????# # | | ???????????????????????????????????## ## [## | | ????????????????????????????????????# ### ### | | ????????????????????????????????????# ### ### | | ??????????????????????????????????? ###" [ | | ????????????????????????????????? #?#"" / | | ????????????????????????????????# ??#" | | ????????????????????????????????# "#?#"" *="" | | ????????????????????????????????# #?#"" ## ="" | | ????????????????????????????????# ??# "" ?##|"" | | ????????????????????????????????????#"" ??##"" | +----------------------------------------------------+ Best States ------------- Heat Dissipation 25 Coolant Potential 50 Energy Generation 10 Energy Capacity 250 Matter Stores 300 Matter Capacity 300 Sight Range 16 Terrain Scan Range 16 Terrain Scan Density 10 Armor Coverage 800 Evasion (%) 40 Recoil Reduction 2 Item Schematics ----------------- None Robot Schematics ------------------ None Fabricated ------------ Nothing Alien Tech Used ----------------- None Achievements -------------- None Challenges ------------ None Game ------ Seed AuthchipSpectralWheel Manual? 0 Play Time 00:35:50 Cumulative 32.4 hours Start 2024.08.12 @ 01:33:53 End 2024.08.12 @ 18:54:45 Sessions 19 Manual Loads 0 Difficulty Rogue Special Mode None Game No. 24 Rogue 24 Adventurer 0 Explorer 0 Win Type - Total 0 Types 0/0/0/0/0/0/0/0/0 Lore% 16 Gallery% 31 Achievement% 28 Wizard Run 0 Options --------- Layout 1 ASCII 0 Keyboard 1 Movement Vi Keybinds 0 Fullscreen 0 Font 20/Smallcaps Map View 59x39 Zoom Use 0% Tactical HUD 1 Map Filters NONE Filters NONE Steam 1 RUN: c3ce5ddc-e2bd-46b6-bba9-ecaab7d56cbb